[Event "Titled Tuesday Blitz January 31 Early 2023"]
[White "Korchmar, Vasiliy"]
[Black "Drygalov, Sergey"]
[WhiteFideId "24131750"]
[BlackFideId "24171743"]
[WhiteElo "2438"]
[BlackElo "2547"]
[Result "0-1"]
[Round "02"]
[TimeControl "180+2"]
[Date "2023.01.31"]
[WhiteClock "0:00:02"]
[BlackClock "0:00:46"]

1. e4 {[%clk 0:03:00]}  c5 {[%clk 0:03:00]} 2. Nf3 {[%clk 0:03:00]}  d6 {[%clk 0:03:00]} 3. d4 {[%clk 0:03:00]}  cxd4 {[%clk 0:03:01]} 4. Nxd4 {[%clk 0:03:01]}  Nf6 {[%clk 0:03:02]} 5. Nc3 {[%clk 0:03:01]}  a6 {[%clk 0:03:03]} 6. Be2 {[%clk 0:03:02]}  e5 {[%clk 0:03:03]} 7. Nb3 {[%clk 0:03:02]}  Be7 {[%clk 0:03:03]} 8. O-O {[%clk 0:03:02]}  O-O {[%clk 0:03:02]} 9. Be3 {[%clk 0:03:03]}  Be6 {[%clk 0:03:02]} 10. Nd5 {[%clk 0:03:01]}  Nbd7 {[%clk 0:03:00]} 11. Qd3 {[%clk 0:03:00]}  Bxd5 {[%clk 0:02:57]} 12. exd5 {[%clk 0:03:01]}  Ne8 {[%clk 0:02:53]} 13. c4 {[%clk 0:02:58]}  Bg5 {[%clk 0:02:53]} 14. Rad1 {[%clk 0:02:48]}  Rc8 {[%clk 0:02:49]} 15. Bg4 {[%clk 0:02:33]}  Bxe3 {[%clk 0:02:47]} 16. fxe3 {[%clk 0:02:25]}  g6 {[%clk 0:02:42]} 17. e4 {[%clk 0:02:17]}  Rc7 {[%clk 0:02:27]} 18. Bxd7 {[%clk 0:02:13]}  Qxd7 {[%clk 0:02:27]} 19. Rf2 {[%clk 0:02:03]}  b6 {[%clk 0:02:20]} 20. Rdf1 {[%clk 0:02:01]}  Qa4 {[%clk 0:02:19]} 21. Rc2 {[%clk 0:01:30]}  Ng7 {[%clk 0:02:08]} 22. Kh1 {[%clk 0:01:11]}  Nh5 {[%clk 0:02:01]} 23. Rfc1 {[%clk 0:01:01]}  Rfc8 {[%clk 0:01:58]} 24. h3 {[%clk 0:00:51]}  Nf4 {[%clk 0:01:50]} 25. Qf1 {[%clk 0:00:40]}  Qxa2 {[%clk 0:01:49]} 26. Nd2 {[%clk 0:00:37]}  Qa4 {[%clk 0:01:48]} 27. g3 {[%clk 0:00:32]}  Nh5 {[%clk 0:01:47]} 28. Qf2 {[%clk 0:00:30]}  Qd7 {[%clk 0:01:46]} 29. Kg2 {[%clk 0:00:30]}  Rb7 {[%clk 0:01:36]} 30. b4 {[%clk 0:00:30]}  a5 {[%clk 0:01:22]} 31. c5 {[%clk 0:00:27]}  bxc5 {[%clk 0:01:19]} 32. bxc5 {[%clk 0:00:28]}  dxc5 {[%clk 0:01:19]} 33. Rxc5 {[%clk 0:00:18]}  Rxc5 {[%clk 0:01:15]} 34. Qxc5 {[%clk 0:00:19]}  Rb2 {[%clk 0:01:13]} 35. Qxa5 {[%clk 0:00:16]}  Qe7 {[%clk 0:01:07]} 36. Rc8+ {[%clk 0:00:09]}  Kg7 {[%clk 0:01:07]} 37. Qc3 {[%clk 0:00:09]}  Ra2 {[%clk 0:01:04]} 38. h4 {[%clk 0:00:07]}  Ra3 {[%clk 0:00:59]} 39. Nb3 {[%clk 0:00:02]}  Ra2+ {[%clk 0:00:46]} 40. Qb2 {[%clk 0:00:02]}  Rxb2+ {[%clk 0:00:46]} 0-1


[Site "https://www.chess.com"]

[Event "Titled Tuesday Blitz January 31 Early 2023"]
[White "Dimitrov, Atanas"]
[Black "Oparin, Grigoriy"]
[WhiteFideId "2901315"]
[BlackFideId "24125890"]
[WhiteElo "2269"]
[BlackElo "2667"]
[Result "0-1"]
[Round "02"]
[TimeControl "180+2"]
[Date "2023.01.31"]
[WhiteClock "0:00:17"]
[BlackClock "0:00:45"]

1. e4 {[%clk 0:03:00]}  c5 {[%clk 0:02:49]} 2. Nf3 {[%clk 0:03:00]}  d6 {[%clk 0:02:49]} 3. d4 {[%clk 0:03:00]}  cxd4 {[%clk 0:02:50]} 4. Nxd4 {[%clk 0:03:01]}  Nf6 {[%clk 0:02:50]} 5. Nc3 {[%clk 0:03:01]}  Nc6 {[%clk 0:02:51]} 6. g3 {[%clk 0:02:58]}  e5 {[%clk 0:02:50]} 7. Nde2 {[%clk 0:02:57]}  h6 {[%clk 0:02:46]} 8. Bg2 {[%clk 0:02:57]}  Be7 {[%clk 0:02:47]} 9. h3 {[%clk 0:02:57]}  O-O {[%clk 0:02:47]} 10. Be3 {[%clk 0:02:57]}  Be6 {[%clk 0:02:46]} 11. O-O {[%clk 0:02:52]}  Rc8 {[%clk 0:02:41]} 12. Nd5 {[%clk 0:02:42]}  b5 {[%clk 0:02:29]} 13. c3 {[%clk 0:02:32]}  a6 {[%clk 0:02:22]} 14. g4 {[%clk 0:02:26]}  Nd7 {[%clk 0:02:03]} 15. Qd2 {[%clk 0:02:15]}  Bg5 {[%clk 0:02:00]} 16. Rad1 {[%clk 0:02:07]}  Na5 {[%clk 0:01:52]} 17. b3 {[%clk 0:02:04]}  Bxe3 {[%clk 0:01:48]} 18. Nxe3 {[%clk 0:02:00]}  Nb7 {[%clk 0:01:48]} 19. Qb2 {[%clk 0:01:46]}  Qb6 {[%clk 0:01:43]} 20. Rd2 {[%clk 0:01:45]}  Rc6 {[%clk 0:01:37]} 21. Rfd1 {[%clk 0:01:45]}  Rfc8 {[%clk 0:01:37]} 22. Kh2 {[%clk 0:01:38]}  Nf8 {[%clk 0:01:38]} 23. Ng3 {[%clk 0:01:33]}  Rxc3 {[%clk 0:01:15]} 24. Ngf5 {[%clk 0:01:33]}  Ng6 {[%clk 0:01:06]} 25. Nxd6 {[%clk 0:01:29]}  Nxd6 {[%clk 0:01:07]} 26. Rxd6 {[%clk 0:01:30]}  R3c6 {[%clk 0:01:07]} 27. R6d2 {[%clk 0:01:08]}  f6 {[%clk 0:01:04]} 28. Bf1 {[%clk 0:01:00]}  Nf4 {[%clk 0:01:03]} 29. a4 {[%clk 0:00:58]}  Kh7 {[%clk 0:00:57]} 30. axb5 {[%clk 0:00:55]}  axb5 {[%clk 0:00:58]} 31. Ng2 {[%clk 0:00:46]}  Nxg2 {[%clk 0:00:56]} 32. Kxg2 {[%clk 0:00:46]}  b4 {[%clk 0:00:56]} 33. Rd3 {[%clk 0:00:29]}  Rc3 {[%clk 0:00:56]} 34. Rd6 {[%clk 0:00:26]}  R8c6 {[%clk 0:00:56]} 35. Rxc6 {[%clk 0:00:25]}  Qxc6 {[%clk 0:00:57]} 36. Bd3 {[%clk 0:00:22]}  Bxb3 {[%clk 0:00:48]} 37. Rd2 {[%clk 0:00:22]}  Rxd3 {[%clk 0:00:46]} 38. Rxd3 {[%clk 0:00:20]}  Qxe4+ {[%clk 0:00:47]} 39. Rf3 {[%clk 0:00:18]}  Bd5 {[%clk 0:00:48]} 40. Kf1 {[%clk 0:00:17]}  Qxf3 {[%clk 0:00:47]} 41. Qxb4 {[%clk 0:00:17]}  Qxh3+ {[%clk 0:00:45]} 42. Ke1 {[%clk 0:00:17]}  Qh1+ {[%clk 0:00:45]} 0-1


[Site "https://www.chess.com"]

[Event "Titled Tuesday Blitz January 31 Early 2023"]
[White "Moroni, Luca Jr"]
[Black "Odegov, Artem"]
[WhiteFideId "865834"]
[BlackFideId "34183644"]
[WhiteElo "2535"]
[BlackElo "2261"]
[Result "1-0"]
[Round "02"]
[TimeControl "180+2"]
[Date "2023.01.31"]
[WhiteClock "0:00:06"]
[BlackClock "0:00:04"]

1. c4 {[%clk 0:03:00]}  e6 {[%clk 0:02:56]} 2. Nc3 {[%clk 0:03:01]}  d5 {[%clk 0:02:50]} 3. d4 {[%clk 0:03:00]}  c5 {[%clk 0:02:51]} 4. cxd5 {[%clk 0:02:59]}  exd5 {[%clk 0:02:51]} 5. Nf3 {[%clk 0:02:59]}  Nc6 {[%clk 0:02:50]} 6. g3 {[%clk 0:02:59]}  Nf6 {[%clk 0:02:49]} 7. Bg2 {[%clk 0:02:59]}  Be7 {[%clk 0:02:49]} 8. O-O {[%clk 0:02:59]}  O-O {[%clk 0:02:49]} 9. b3 {[%clk 0:02:59]}  Ne4 {[%clk 0:02:49]} 10. Bb2 {[%clk 0:02:58]}  Bf6 {[%clk 0:02:49]} 11. e3 {[%clk 0:02:14]}  Bg4 {[%clk 0:02:42]} 12. h3 {[%clk 0:02:08]}  Bxf3 {[%clk 0:02:33]} 13. Bxf3 {[%clk 0:02:00]}  cxd4 {[%clk 0:02:32]} 14. Nxe4 {[%clk 0:01:39]}  dxe4 {[%clk 0:02:29]} 15. Bxe4 {[%clk 0:01:39]}  dxe3 {[%clk 0:02:19]} 16. Qxd8 {[%clk 0:01:35]}  exf2+ {[%clk 0:02:12]} 17. Rxf2 {[%clk 0:01:34]}  Bxd8 {[%clk 0:02:13]} 18. Rc2 {[%clk 0:01:29]}  Bb6+ {[%clk 0:02:06]} 19. Kg2 {[%clk 0:01:29]}  Rac8 {[%clk 0:01:57]} 20. Rac1 {[%clk 0:01:25]}  Rfe8 {[%clk 0:01:53]} 21. Bxc6 {[%clk 0:01:14]}  bxc6 {[%clk 0:01:41]} 22. Rxc6 {[%clk 0:00:54]}  Rcd8 {[%clk 0:01:17]} 23. R1c2 {[%clk 0:00:44]}  f6 {[%clk 0:01:15]} 24. b4 {[%clk 0:00:29]}  Rd3 {[%clk 0:01:08]} 25. Rc8 {[%clk 0:00:18]}  Rxc8 {[%clk 0:00:59]} 26. Rxc8+ {[%clk 0:00:19]}  Kf7 {[%clk 0:01:00]} 27. Rc2 {[%clk 0:00:20]}  h5 {[%clk 0:00:35]} 28. a4 {[%clk 0:00:20]}  Rb3 {[%clk 0:00:34]} 29. a5 {[%clk 0:00:19]}  Bd8 {[%clk 0:00:31]} 30. Bc3 {[%clk 0:00:14]}  Be7 {[%clk 0:00:29]} 31. a6 {[%clk 0:00:12]}  Ra3 {[%clk 0:00:16]} 32. b5 {[%clk 0:00:11]}  Rb3 {[%clk 0:00:16]} 33. Bd4 {[%clk 0:00:10]}  Rxb5 {[%clk 0:00:16]} 34. Rc7 {[%clk 0:00:10]}  Ra5 {[%clk 0:00:14]} 35. Rxa7 {[%clk 0:00:09]}  Ke6 {[%clk 0:00:14]} 36. Ra8 {[%clk 0:00:08]}  g5 {[%clk 0:00:14]} 37. a7 {[%clk 0:00:08]}  Ra2+ {[%clk 0:00:11]} 38. Kf1 {[%clk 0:00:08]}  Ra4 {[%clk 0:00:04]} 39. Rb8 {[%clk 0:00:06]}  Bd6 {[%clk 0:00:04]} 40. a8=Q {[%clk 0:00:06]}  Bxb8 {[%clk 0:00:04]} 41. Qxa4 {[%clk 0:00:06]} 1-0


[Site "https://www.chess.com"]

[Event "Titled Tuesday Blitz January 31 Early 2023"]
[White "Subelj, Jan"]
[Black "Jones, Gawain C B"]
[WhiteFideId "14618583"]
[BlackFideId "409561"]
[WhiteElo "2513"]
[BlackElo "2618"]
[Result "0-1"]
[Round "02"]
[TimeControl "180+2"]
[Date "2023.01.31"]
[WhiteClock "0:00:56"]
[BlackClock "0:01:54"]

1. e4 {[%clk 0:02:59]}  e5 {[%clk 0:02:59]} 2. Nf3 {[%clk 0:02:59]}  Nc6 {[%clk 0:02:59]} 3. Bb5 {[%clk 0:02:58]}  a6 {[%clk 0:03:00]} 4. Ba4 {[%clk 0:02:58]}  Nf6 {[%clk 0:03:00]} 5. d3 {[%clk 0:02:57]}  d6 {[%clk 0:02:59]} 6. O-O {[%clk 0:02:57]}  g6 {[%clk 0:03:00]} 7. c3 {[%clk 0:02:56]}  Bg7 {[%clk 0:03:00]} 8. Re1 {[%clk 0:02:56]}  O-O {[%clk 0:03:00]} 9. Nbd2 {[%clk 0:02:55]}  h6 {[%clk 0:02:56]} 10. h3 {[%clk 0:02:52]}  Nh7 {[%clk 0:02:48]} 11. Nf1 {[%clk 0:02:04]}  f5 {[%clk 0:02:48]} 12. Ne3 {[%clk 0:02:03]}  f4 {[%clk 0:02:46]} 13. Nd5 {[%clk 0:02:03]}  Ne7 {[%clk 0:02:40]} 14. Bb3 {[%clk 0:01:53]}  Nxd5 {[%clk 0:02:39]} 15. Bxd5+ {[%clk 0:01:54]}  Kh8 {[%clk 0:02:39]} 16. d4 {[%clk 0:01:55]}  g5 {[%clk 0:02:29]} 17. Bb3 {[%clk 0:01:47]}  g4 {[%clk 0:02:22]} 18. hxg4 {[%clk 0:01:47]}  Bxg4 {[%clk 0:02:21]} 19. Qd3 {[%clk 0:01:37]}  Qe8 {[%clk 0:02:11]} 20. Bd1 {[%clk 0:01:35]}  Bf6 {[%clk 0:02:02]} 21. Nh2 {[%clk 0:01:22]}  Bxd1 {[%clk 0:01:58]} 22. Qxd1 {[%clk 0:01:23]}  Rg8 {[%clk 0:01:56]} 23. Ng4 {[%clk 0:01:06]}  Qg6 {[%clk 0:01:54]} 24. f3 {[%clk 0:00:56]}  h5 {[%clk 0:01:54]} 0-1


[Site "https://www.chess.com"]

[Event "Titled Tuesday Blitz January 31 Early 2023"]
[White "Gorodetzky, David"]
[Black "Aldokhin, Ivan"]
[WhiteFideId "2813416"]
[BlackFideId "24115720"]
[WhiteElo "2485"]
[BlackElo "2413"]
[Result "1-0"]
[Round "02"]
[TimeControl "180+2"]
[Date "2023.01.31"]
[WhiteClock "0:00:08"]
[BlackClock "0:00:01"]

1. d4 {[%clk 0:03:00]}  Nf6 {[%clk 0:02:59]} 2. c4 {[%clk 0:03:00]}  g6 {[%clk 0:03:00]} 3. Nc3 {[%clk 0:03:00]}  Bg7 {[%clk 0:03:01]} 4. e4 {[%clk 0:03:00]}  d6 {[%clk 0:03:01]} 5. Nf3 {[%clk 0:03:01]}  O-O {[%clk 0:03:02]} 6. Be2 {[%clk 0:03:00]}  Nc6 {[%clk 0:03:02]} 7. O-O {[%clk 0:02:59]}  Re8 {[%clk 0:03:02]} 8. d5 {[%clk 0:02:58]}  Nb4 {[%clk 0:03:01]} 9. a3 {[%clk 0:02:52]}  Na6 {[%clk 0:03:01]} 10. Be3 {[%clk 0:02:51]}  e6 {[%clk 0:03:01]} 11. Qc2 {[%clk 0:02:37]}  exd5 {[%clk 0:03:01]} 12. cxd5 {[%clk 0:02:36]}  Nc5 {[%clk 0:02:57]} 13. Bxc5 {[%clk 0:02:36]}  dxc5 {[%clk 0:02:56]} 14. e5 {[%clk 0:02:31]}  Nxd5 {[%clk 0:02:28]} 15. Rad1 {[%clk 0:02:29]}  c6 {[%clk 0:02:22]} 16. Nxd5 {[%clk 0:02:29]}  cxd5 {[%clk 0:02:22]} 17. Qxc5 {[%clk 0:02:30]}  Be6 {[%clk 0:02:20]} 18. Qb5 {[%clk 0:02:30]}  Qb6 {[%clk 0:01:58]} 19. Qxb6 {[%clk 0:02:29]}  axb6 {[%clk 0:01:58]} 20. Bb5 {[%clk 0:02:28]}  Rec8 {[%clk 0:01:52]} 21. Rd2 {[%clk 0:02:28]}  Rc5 {[%clk 0:01:46]} 22. a4 {[%clk 0:02:26]}  Bg4 {[%clk 0:01:43]} 23. b4 {[%clk 0:02:14]}  Rc3 {[%clk 0:01:34]} 24. Ng5 {[%clk 0:02:11]}  Bxe5 {[%clk 0:01:19]} 25. Rxd5 {[%clk 0:02:08]}  Bg7 {[%clk 0:01:12]} 26. h3 {[%clk 0:02:01]}  Bf5 {[%clk 0:01:08]} 27. Bd7 {[%clk 0:01:53]}  Bc2 {[%clk 0:00:47]} 28. Re1 {[%clk 0:01:42]}  Bf6 {[%clk 0:00:42]} 29. Ne4 {[%clk 0:01:30]}  Bxe4 {[%clk 0:00:39]} 30. Rxe4 {[%clk 0:01:31]}  Rd8 {[%clk 0:00:39]} 31. g3 {[%clk 0:01:20]}  Kf8 {[%clk 0:00:38]} 32. Rf4 {[%clk 0:01:02]}  Ke7 {[%clk 0:00:31]} 33. Rd1 {[%clk 0:00:35]}  Rc7 {[%clk 0:00:20]} 34. Re1+ {[%clk 0:00:30]}  Kf8 {[%clk 0:00:17]} 35. Rxf6 {[%clk 0:00:30]}  Rdxd7 {[%clk 0:00:13]} 36. Rxb6 {[%clk 0:00:30]}  Rd4 {[%clk 0:00:13]} 37. a5 {[%clk 0:00:30]}  Rd2 {[%clk 0:00:11]} 38. Re3 {[%clk 0:00:30]}  Rb2 {[%clk 0:00:10]} 39. h4 {[%clk 0:00:28]}  h5 {[%clk 0:00:09]} 40. Kg2 {[%clk 0:00:26]}  Kg7 {[%clk 0:00:09]} 41. Rf3 {[%clk 0:00:27]}  Rd7 {[%clk 0:00:08]} 42. Rf4 {[%clk 0:00:27]}  Rc7 {[%clk 0:00:07]} 43. b5 {[%clk 0:00:19]}  Rd7 {[%clk 0:00:07]} 44. Rf3 {[%clk 0:00:13]}  Rc7 {[%clk 0:00:04]} 45. Kf1 {[%clk 0:00:12]}  Rd7 {[%clk 0:00:04]} 46. Re3 {[%clk 0:00:12]}  Rc7 {[%clk 0:00:04]} 47. Re2 {[%clk 0:00:12]}  Rb1+ {[%clk 0:00:05]} 48. Kg2 {[%clk 0:00:12]}  Rb4 {[%clk 0:00:05]} 49. Ra2 {[%clk 0:00:10]}  Rc5 {[%clk 0:00:05]} 50. Rxb7 {[%clk 0:00:11]}  Rcxb5 {[%clk 0:00:05]} 51. Rxb5 {[%clk 0:00:11]}  Rxb5 {[%clk 0:00:06]} 52. a6 {[%clk 0:00:12]}  Rb8 {[%clk 0:00:07]} 53. a7 {[%clk 0:00:13]}  Ra8 {[%clk 0:00:08]} 54. Kf3 {[%clk 0:00:13]}  Kf6 {[%clk 0:00:08]} 55. Ke4 {[%clk 0:00:14]}  Ke6 {[%clk 0:00:09]} 56. Ra6+ {[%clk 0:00:15]}  Ke7 {[%clk 0:00:09]} 57. Ke5 {[%clk 0:00:11]}  f6+ {[%clk 0:00:09]} 58. Rxf6 {[%clk 0:00:09]}  Rxa7 {[%clk 0:00:09]} 59. Rxg6 {[%clk 0:00:10]}  Ra2 {[%clk 0:00:09]} 60. f4 {[%clk 0:00:09]}  Ra3 {[%clk 0:00:08]} 61. Kf5 {[%clk 0:00:08]}  Kf7 {[%clk 0:00:08]} 62. Rg5 {[%clk 0:00:09]}  Rb3 {[%clk 0:00:06]} 63. Ke4 {[%clk 0:00:07]}  Ra3 {[%clk 0:00:06]} 64. f5 {[%clk 0:00:07]}  Ra4+ {[%clk 0:00:05]} 65. Kf3 {[%clk 0:00:07]}  Ra3+ {[%clk 0:00:05]} 66. Kg2 {[%clk 0:00:07]}  Kf6 {[%clk 0:00:04]} 67. Rxh5 {[%clk 0:00:07]}  Rb3 {[%clk 0:00:04]} 68. Kh3 {[%clk 0:00:06]}  Ra3 {[%clk 0:00:04]} 69. Rg5 {[%clk 0:00:07]}  Rb3 {[%clk 0:00:04]} 70. Rg8 {[%clk 0:00:07]}  Kxf5 {[%clk 0:00:03]} 71. h5 {[%clk 0:00:08]}  Kf6 {[%clk 0:00:03]} 72. Kh4 {[%clk 0:00:06]}  Rb1 {[%clk 0:00:03]} 73. Rg6+ {[%clk 0:00:06]}  Kf5 {[%clk 0:00:03]} 74. g4+ {[%clk 0:00:07]}  Kf4 {[%clk 0:00:02]} 75. Rf6+ {[%clk 0:00:07]}  Ke5 {[%clk 0:00:02]} 76. Rf8 {[%clk 0:00:08]}  Ke6 {[%clk 0:00:01]} 77. h6 {[%clk 0:00:07]}  Ke7 {[%clk 0:00:01]} 78. Rf3 {[%clk 0:00:08]} 1-0


[Site "https://www.chess.com"]

[Event "Titled Tuesday Blitz January 31 Early 2023"]
[White "Baskakov, Egor"]
[Black "Sielecki, Christof"]
[WhiteFideId "24197866"]
[BlackFideId "4620437"]
[WhiteElo "2215"]
[BlackElo "2419"]
[Result "1-0"]
[Round "02"]
[TimeControl "180+2"]
[Date "2023.01.31"]
[WhiteClock "0:00:12"]
[BlackClock "0:00:02"]

1. e4 {[%clk 0:03:00]}  c5 {[%clk 0:02:59]} 2. Nf3 {[%clk 0:02:59]}  a6 {[%clk 0:02:59]} 3. c4 {[%clk 0:02:58]}  Nc6 {[%clk 0:02:59]} 4. Nc3 {[%clk 0:02:58]}  e5 {[%clk 0:02:59]} 5. d3 {[%clk 0:02:58]}  d6 {[%clk 0:02:59]} 6. g3 {[%clk 0:02:58]}  Rb8 {[%clk 0:02:58]} 7. Bg2 {[%clk 0:02:59]}  b5 {[%clk 0:02:58]} 8. h3 {[%clk 0:02:59]}  Nf6 {[%clk 0:02:53]} 9. O-O {[%clk 0:02:59]}  Be7 {[%clk 0:02:53]} 10. Re1 {[%clk 0:02:58]}  O-O {[%clk 0:02:52]} 11. Nd5 {[%clk 0:02:58]}  Be6 {[%clk 0:02:39]} 12. Nxe7+ {[%clk 0:02:56]}  Qxe7 {[%clk 0:02:35]} 13. b3 {[%clk 0:02:57]}  Nd7 {[%clk 0:02:18]} 14. Nh4 {[%clk 0:02:56]}  Nd4 {[%clk 0:02:15]} 15. Nf3 {[%clk 0:02:50]}  Nxf3+ {[%clk 0:02:13]} 16. Qxf3 {[%clk 0:02:50]}  bxc4 {[%clk 0:02:03]} 17. dxc4 {[%clk 0:02:50]}  Rb6 {[%clk 0:01:55]} 18. Rd1 {[%clk 0:02:50]}  Nb8 {[%clk 0:01:53]} 19. Qd3 {[%clk 0:02:43]}  Rd8 {[%clk 0:01:49]} 20. Bd2 {[%clk 0:02:43]}  Nc6 {[%clk 0:01:49]} 21. f4 {[%clk 0:02:44]}  f6 {[%clk 0:01:47]} 22. f5 {[%clk 0:02:40]}  Bf7 {[%clk 0:01:46]} 23. g4 {[%clk 0:02:37]}  Rd7 {[%clk 0:01:30]} 24. h4 {[%clk 0:02:35]}  Nd4 {[%clk 0:01:25]} 25. g5 {[%clk 0:02:35]}  Bh5 {[%clk 0:01:25]} 26. Re1 {[%clk 0:02:34]}  Ra7 {[%clk 0:01:18]} 27. Rab1 {[%clk 0:02:26]}  a5 {[%clk 0:01:17]} 28. Kh2 {[%clk 0:02:25]}  Qb7 {[%clk 0:01:10]} 29. Qg3 {[%clk 0:02:23]}  Kh8 {[%clk 0:01:07]} 30. a4 {[%clk 0:01:46]}  Qf7 {[%clk 0:00:58]} 31. Re3 {[%clk 0:01:39]}  Rb8 {[%clk 0:00:54]} 32. Bf1 {[%clk 0:01:19]}  Qc7 {[%clk 0:00:47]} 33. Bd3 {[%clk 0:01:09]}  Rab7 {[%clk 0:00:46]} 34. Rg1 {[%clk 0:01:06]}  Qf7 {[%clk 0:00:39]} 35. Bxa5 {[%clk 0:00:56]}  Rxb3 {[%clk 0:00:34]} 36. Rg2 {[%clk 0:00:43]}  Ra3 {[%clk 0:00:26]} 37. Bd2 {[%clk 0:00:24]}  Rxa4 {[%clk 0:00:25]} 38. Rf2 {[%clk 0:00:19]}  Ra2 {[%clk 0:00:23]} 39. Kh3 {[%clk 0:00:17]}  Rbb2 {[%clk 0:00:22]} 40. Be1 {[%clk 0:00:18]}  Rxf2 {[%clk 0:00:19]} 41. Bxf2 {[%clk 0:00:18]}  Ra3 {[%clk 0:00:17]} 42. Bf1 {[%clk 0:00:18]}  Rxe3 {[%clk 0:00:16]} 43. Qxe3 {[%clk 0:00:19]}  Qa7 {[%clk 0:00:12]} 44. Bg3 {[%clk 0:00:13]}  Qa2 {[%clk 0:00:10]} 45. gxf6 {[%clk 0:00:13]}  Qa7 {[%clk 0:00:02]} 46. Qg5 {[%clk 0:00:12]} 1-0


[Site "https://www.chess.com"]

[Event "Titled Tuesday Blitz January 31 Early 2023"]
[White "Machidon, Cristi"]
[Black "Harsh Suresh"]
[WhiteFideId "13904590"]
[BlackFideId "45018464"]
[WhiteElo "2301"]
[BlackElo "2298"]
[Result "0-1"]
[Round "02"]
[TimeControl "180+2"]
[Date "2023.01.31"]
[WhiteClock "0:00:07"]
[BlackClock "0:00:05"]

1. d4 {[%clk 0:02:58]}  Nf6 {[%clk 0:02:56]} 2. c4 {[%clk 0:02:57]}  e6 {[%clk 0:02:56]} 3. Nf3 {[%clk 0:02:57]}  b6 {[%clk 0:02:55]} 4. g3 {[%clk 0:02:56]}  Bb7 {[%clk 0:02:55]} 5. Bg2 {[%clk 0:02:56]}  Bb4+ {[%clk 0:02:55]} 6. Bd2 {[%clk 0:02:56]}  Bxd2+ {[%clk 0:02:54]} 7. Qxd2 {[%clk 0:02:55]}  O-O {[%clk 0:02:54]} 8. O-O {[%clk 0:02:54]}  d6 {[%clk 0:02:51]} 9. Re1 {[%clk 0:02:53]}  Nbd7 {[%clk 0:02:51]} 10. Bf1 {[%clk 0:02:39]}  Ne4 {[%clk 0:02:42]} 11. Qc2 {[%clk 0:02:38]}  f5 {[%clk 0:02:41]} 12. Nc3 {[%clk 0:01:52]}  Ndf6 {[%clk 0:02:40]} 13. Nd2 {[%clk 0:01:45]}  Nxd2 {[%clk 0:02:07]} 14. Qxd2 {[%clk 0:01:44]}  Qe8 {[%clk 0:02:07]} 15. Bg2 {[%clk 0:01:42]}  Bxg2 {[%clk 0:02:06]} 16. Kxg2 {[%clk 0:01:43]}  Qc6+ {[%clk 0:02:07]} 17. d5 {[%clk 0:01:34]}  Qxc4 {[%clk 0:02:05]} 18. b3 {[%clk 0:01:30]}  Qc5 {[%clk 0:01:39]} 19. dxe6 {[%clk 0:01:29]}  Rae8 {[%clk 0:01:39]} 20. Rac1 {[%clk 0:01:28]}  Qe5 {[%clk 0:01:06]} 21. e3 {[%clk 0:00:53]}  Rxe6 {[%clk 0:00:59]} 22. Ne2 {[%clk 0:00:50]}  Ne4 {[%clk 0:00:42]} 23. Qd4 {[%clk 0:00:47]}  c5 {[%clk 0:00:38]} 24. Qd3 {[%clk 0:00:37]}  d5 {[%clk 0:00:31]} 25. Rcd1 {[%clk 0:00:34]}  Rd6 {[%clk 0:00:30]} 26. f3 {[%clk 0:00:32]}  Nf6 {[%clk 0:00:29]} 27. Nc3 {[%clk 0:00:32]}  Rfd8 {[%clk 0:00:28]} 28. b4 {[%clk 0:00:23]}  c4 {[%clk 0:00:20]} 29. Qd4 {[%clk 0:00:22]}  Qxd4 {[%clk 0:00:20]} 30. Rxd4 {[%clk 0:00:23]}  a6 {[%clk 0:00:19]} 31. Red1 {[%clk 0:00:20]}  Kf7 {[%clk 0:00:17]} 32. e4 {[%clk 0:00:20]}  fxe4 {[%clk 0:00:18]} 33. fxe4 {[%clk 0:00:20]}  Ke6 {[%clk 0:00:16]} 34. exd5+ {[%clk 0:00:19]}  Nxd5 {[%clk 0:00:16]} 35. Re1+ {[%clk 0:00:17]}  Kf7 {[%clk 0:00:14]} 36. Rxc4 {[%clk 0:00:15]}  b5 {[%clk 0:00:12]} 37. Rc5 {[%clk 0:00:08]}  Nxb4 {[%clk 0:00:13]} 38. Ne4 {[%clk 0:00:06]}  Rd5 {[%clk 0:00:06]} 39. Rc7+ {[%clk 0:00:06]}  R8d7 {[%clk 0:00:05]} 40. Ng5+ {[%clk 0:00:06]}  Kg6 {[%clk 0:00:04]} 41. Rxd7 {[%clk 0:00:04]}  Rxd7 {[%clk 0:00:05]} 42. Nf3 {[%clk 0:00:04]}  Nd3 {[%clk 0:00:05]} 43. Re2 {[%clk 0:00:03]}  Nc5 {[%clk 0:00:05]} 44. Ne5+ {[%clk 0:00:03]}  Kf6 {[%clk 0:00:05]} 45. Nxd7+ {[%clk 0:00:04]}  Nxd7 {[%clk 0:00:05]} 46. Rc2 {[%clk 0:00:04]}  Ne5 {[%clk 0:00:05]} 47. Rc7 {[%clk 0:00:04]}  a5 {[%clk 0:00:03]} 48. Rb7 {[%clk 0:00:04]}  b4 {[%clk 0:00:02]} 49. Rb5 {[%clk 0:00:04]}  Nc4 {[%clk 0:00:03]} 50. Rc5 {[%clk 0:00:04]}  Ne3+ {[%clk 0:00:02]} 51. Kf3 {[%clk 0:00:05]}  Nf1 {[%clk 0:00:02]} 52. Rxa5 {[%clk 0:00:05]}  Nxh2+ {[%clk 0:00:02]} 53. Kf4 {[%clk 0:00:06]}  h6 {[%clk 0:00:01]} 54. Ra6+ {[%clk 0:00:06]}  Kf7 {[%clk 0:00:01]} 55. Rb6 {[%clk 0:00:07]}  g5+ {[%clk 0:00:02]} 56. Kf5 {[%clk 0:00:07]}  Nf1 {[%clk 0:00:03]} 57. Rb7+ {[%clk 0:00:07]}  Ke8 {[%clk 0:00:03]} 58. Rxb4 {[%clk 0:00:08]}  Nxg3+ {[%clk 0:00:03]} 59. Ke6 {[%clk 0:00:08]}  Kd8 {[%clk 0:00:04]} 60. a4 {[%clk 0:00:08]}  Kc7 {[%clk 0:00:04]} 61. a5 {[%clk 0:00:08]}  Ne2 {[%clk 0:00:04]} 62. a6 {[%clk 0:00:08]}  Nf4+ {[%clk 0:00:05]} 63. Ke7 {[%clk 0:00:07]}  Nd5+ {[%clk 0:00:05]} 64. Ke6 {[%clk 0:00:06]}  Nxb4 {[%clk 0:00:06]} 65. Kf5 {[%clk 0:00:07]}  Nxa6 {[%clk 0:00:05]} 0-1


[Site "https://www.chess.com"]

[Event "Titled Tuesday Blitz January 31 Early 2023"]
[White "Jakubowski, Krzysztof"]
[Black "Vakhlamov, Igor L."]
[WhiteFideId "1112848"]
[BlackFideId "24126748"]
[WhiteElo "2486"]
[BlackElo "2413"]
[Result "0-1"]
[Round "02"]
[TimeControl "180+2"]
[Date "2023.01.31"]
[WhiteClock "0:00:56"]
[BlackClock "0:02:15"]

1. e4 {[%clk 0:03:00]}  c5 {[%clk 0:02:59]} 2. Nf3 {[%clk 0:02:59]}  e6 {[%clk 0:02:46]} 3. d4 {[%clk 0:02:58]}  cxd4 {[%clk 0:02:47]} 4. Nxd4 {[%clk 0:02:59]}  Nf6 {[%clk 0:02:48]} 5. Nc3 {[%clk 0:02:58]}  Nc6 {[%clk 0:02:48]} 6. Ndb5 {[%clk 0:02:56]}  Bc5 {[%clk 0:02:48]} 7. Nd6+ {[%clk 0:02:52]}  Ke7 {[%clk 0:02:48]} 8. Bf4 {[%clk 0:02:52]}  e5 {[%clk 0:02:48]} 9. Nf5+ {[%clk 0:02:51]}  Kf8 {[%clk 0:02:48]} 10. Be3 {[%clk 0:02:38]}  Bb4 {[%clk 0:02:47]} 11. Bd3 {[%clk 0:02:11]}  d5 {[%clk 0:02:41]} 12. exd5 {[%clk 0:02:07]}  Nxd5 {[%clk 0:02:37]} 13. O-O {[%clk 0:02:04]}  Nxc3 {[%clk 0:02:24]} 14. bxc3 {[%clk 0:02:02]}  Bxc3 {[%clk 0:02:21]} 15. Bc5+ {[%clk 0:01:27]}  Kg8 {[%clk 0:02:21]} 16. Nh6+ {[%clk 0:00:58]}  gxh6 {[%clk 0:02:15]} 17. Qe2 {[%clk 0:00:56]} 0-1


[Site "https://www.chess.com"]